fUST/lending_fUST_20260703
["ID","MTS","AMOUNT","RATE_DAILY","PERIOD"]
[426946090,1783044640000,-1980.72966305,0.000252,2]
[426946098,1783044640000,-151.0,0.00027656,2]
[426946106,1783044640000,-163.0,0.00028,20]
[426946091,1783044640000,-187.0269178,0.00026525,2]
[426946104,1783044640000,-395.0,0.00028,2]
[426946113,1783044640000,-2983.0376785,0.0002817,2]
[426946108,1783044640000,-451.779,0.00028014,2]
[426946110,1783044640000,-195.535,0.00028014,2]
[426946102,1783044640000,-562.0,0.00028,2]
[426946866,1783044647000,-20.30155356,0.00028278,2]
[426946911,1783044761000,372.757433,0.0002868,120]
[426946912,1783044795000,186.378717,0.0002868,120]
[426946913,1783045636000,-151.0,0.0002321,2]
[426946914,1783045636000,-25.63924567,0.00023928,7]
[426946915,1783045685000,6667.73979133,0.00029045,120]
[426946916,1783045748000,-512.72532589,0.00023928,7]
[426946918,1783045748000,-398.04393667,0.00025124,7]
[426946917,1783045748000,-538.36457156,0.00024407,7]
[426946964,1783045832000,-538.36457156,0.00025842,7]
[426946966,1783045832000,-2.9218941,0.000261,2]
[426946962,1783045832000,-140.32063489,0.00025124,7]
[426947064,1783045840000,-160.79017311,0.000261,2]
[426947065,1783045840000,-255.14,0.0002623,2]
[426947066,1783045840000,-538.36457157,0.00026799,7]
[426947068,1783045840000,-174.4326082,0.00027397,30]
[426947067,1783045840000,-200.0,0.00027392,2]
[426947093,1783045841000,-500.0,0.0002786,2]
[426947092,1783045841000,-500.0,0.0002786,2]
[426947094,1783045841000,-500.0,0.0002786,2]
[426947104,1783045841000,-601.12879078,0.0002796,2]
[426947098,1783045841000,-500.0,0.0002786,2]
[426947100,1783045841000,-500.0,0.0002786,2]
[426947105,1783045841000,-601.12879078,0.0002796,2]
[426947095,1783045841000,-500.0,0.0002786,2]
[426947097,1783045841000,-500.0,0.0002786,2]
[426947110,1783045841000,-601.12879078,0.0002796,2]
[426947099,1783045841000,-500.0,0.0002786,2]
[426947103,1783045841000,-6032.00411174,0.00027861,2]
[426947101,1783045841000,-500.0,0.0002786,2]
[426947102,1783045841000,-500.0,0.0002786,2]
[426947106,1783045841000,-211.37521918,0.0002796,2]
[426947091,1783045841000,-500.0,0.0002786,2]
[426947108,1783045841000,-601.12879078,0.0002796,2]
[426947109,1783045841000,-601.12879078,0.0002796,2]
[426947096,1783045841000,-182.16756786,0.0002786,2]
[426947081,1783045841000,-500.0,0.0002786,2]
[426947085,1783045841000,-500.0,0.0002786,2]
[426947087,1783045841000,-500.0,0.0002786,2]
[426947077,1783045841000,-230.26800197,0.0002786,2]
[426947069,1783045841000,-160.0,0.00027549,3]
[426947070,1783045841000,-151.0,0.00027556,2]
[426947078,1783045841000,-500.0,0.0002786,2]
[426947076,1783045841000,-500.0,0.0002786,2]
[426947072,1783045841000,-160.0,0.00027773,2]
[426947073,1783045841000,-182.73,0.00027777,2]
[426947071,1783045841000,-151.0,0.00027656,2]
[426947075,1783045841000,-500.0,0.0002786,2]
[426947074,1783045841000,-500.0,0.0002786,2]
[426947080,1783045841000,-500.0,0.0002786,2]
[426947082,1783045841000,-500.0,0.0002786,2]
[426947083,1783045841000,-500.0,0.0002786,2]
[426947090,1783045841000,-500.0,0.0002786,2]
[426947107,1783045841000,-601.12879078,0.0002796,2]
[426947079,1783045841000,-500.0,0.0002786,2]
[426947086,1783045841000,-500.0,0.0002786,2]
[426947088,1783045841000,-208.01724142,0.0002786,2]
[426947084,1783045841000,-500.0,0.0002786,2]
[426947089,1783045841000,-500.0,0.0002786,2]
[426947111,1783045841000,-601.12879078,0.0002796,2]
[426947113,1783045841000,-601.12879078,0.0002796,2]
[426947136,1783045841000,-160.0,0.00028248,4]
[426947135,1783045841000,-1107.33980069,0.00028235,2]
[426947115,1783045841000,-601.12879078,0.0002796,2]
[426947137,1783045841000,-500.0,0.00028276,2]
[426947141,1783045841000,-517.52046118,0.00028399,2]
[426947143,1783045841000,-803.22,0.00028399,7]
[426947140,1783045841000,-3197.84557615,0.00028278,2]
[426947142,1783045841000,-503.58811446,0.00028399,2]
[426947145,1783045841000,-186.0,0.00028449,2]
[426947138,1783045841000,-500.0,0.00028276,2]
[426947147,1783045841000,-296.993965,0.00028469,14]
[426947154,1783045841000,-7260.28441561,0.0002861,6]
[426947150,1783045841000,-150.0,0.00028525,2]
[426947155,1783045841000,-755.31457356,0.0002861,6]
[426947149,1783045841000,-1107.33980069,0.00028471,2]
[426947146,1783045841000,-296.993965,0.00028469,14]
[426947151,1783045841000,-200.0,0.00028553,2]
[426947152,1783045841000,-519.54564291,0.0002856,2]
[426947153,1783045841000,-803.22,0.00028609,7]
[426947148,1783045841000,-186.378717,0.00028469,14]
[426947133,1783045841000,-519.54564292,0.00028178,2]
[426947139,1783045841000,-803.22,0.00028276,7]
[426947134,1783045841000,-1012.13,0.000282,2]
[426947112,1783045841000,-601.12879078,0.0002796,2]
[426947114,1783045841000,-601.12879078,0.0002796,2]
[426947117,1783045841000,-601.12879078,0.0002796,2]
[426947118,1783045841000,-601.12879078,0.0002796,2]
[426947127,1783045841000,-182.0,0.00028,2]
[426947116,1783045841000,-601.12879078,0.0002796,2]
[426947119,1783045841000,-601.12879078,0.0002796,2]
[426947123,1783045841000,-601.12879078,0.0002796,2]
[426947144,1783045841000,-446.0,0.00028449,2]
[426947126,1783045841000,-163.0,0.00028,15]
[426947125,1783045841000,-200.0,0.00027972,2]
[426947124,1783045841000,-509.51666381,0.00027962,2]
[426947122,1783045841000,-601.12879078,0.0002796,2]
[426947120,1783045841000,-601.12879078,0.0002796,2]
[426947129,1783045841000,-127.77169217,0.00028,2]
[426947128,1783045841000,-534.0,0.00028,2]
[426947131,1783045841000,-375.0,0.00028,2]
[426947130,1783045841000,-979.56810856,0.00028,2]
[426947132,1783045841000,-6932.29441472,0.00028064,2]
[426947121,1783045841000,-601.12879078,0.0002796,2]
[426947180,1783045843000,-4881.77981401,0.000288,2]
[426947181,1783045843000,-172.608795,0.000288,7]
[426947176,1783045843000,-1107.33980069,0.00028706,2]
[426947186,1783045843000,-300.0,0.000289,3]
[426947179,1783045843000,-15310.26823542,0.000288,2]
[426947174,1783045843000,-803.22,0.0002866,7]
[426947173,1783045843000,-457.31278229,0.0002863,30]
[426947172,1783045843000,-26176.13030013,0.0002861,6]
[426947171,1783045843000,-1141.483245,0.000284,2]
[426947178,1783045843000,-803.22,0.00028799,7]
[426947175,1783045843000,-163.0,0.000287,30]
[426947193,1783045843000,-519.54564291,0.00028941,2]
[426947182,1783045843000,-177.50230439,0.00028899,2]
[426947184,1783045843000,-441.598822,0.000289,10]
[426947183,1783045843000,-556.94325568,0.00028899,2]
[426947188,1783045843000,-198.13685448,0.00028939,2]
[426947187,1783045843000,-1000.0,0.000289,2]
[426947189,1783045843000,-226.4421194,0.00028939,2]
[426947192,1783045843000,-300.0,0.00028941,2]
[426947194,1783045843000,-41436.02296509,0.00028941,2]
[426947190,1783045843000,-353.46199575,0.00028939,2]
[426947191,1783045843000,-1107.33980069,0.00028941,2]
[426947177,1783045843000,-170.04974016,0.0002878,2]
[426947208,1783045844000,-8426.97931334,0.00028941,2]
[426947232,1783045847000,-1791.0,0.00028941,2]
[426947241,1783046949000,-595.43764129,0.00025469,3]
[426947240,1783046949000,-233.0,0.000215,2]
[426947244,1783046949000,-78.73641946,0.00025627,7]
[426947243,1783046949000,-153.0,0.00025627,7]
[426947242,1783046949000,-159.51239932,0.00025627,7]
[426947318,1783047032000,-503.89457816,0.0002796,2]
[426947294,1783047032000,-74.26358054,0.00025627,7]
[426947296,1783047032000,-153.0,0.00026139,7]
[426947299,1783047032000,-153.0,0.00026908,7]
[426947297,1783047032000,-153.0,0.00026139,7]
[426947303,1783047032000,-239.268599,0.00027134,7]
[426947316,1783047032000,-290.82627753,0.000279,2]
[426947307,1783047032000,-3633.3494314,0.00027444,2]
[426947301,1783047032000,-153.0,0.00026908,7]
[426947311,1783047032000,-153.0,0.00027677,7]
[426947305,1783047032000,-239.9174234,0.00027434,2]
[426947309,1783047032000,-181.391882,0.00027623,2]
[426947322,1783047032000,-446.0,0.00028,2]
[426947320,1783047032000,-635.88,0.00027961,7]
[426947324,1783047032000,-173.0,0.00028,2]
[426947327,1783047032000,-635.88,0.00028063,7]
[426947325,1783047032000,-563.0,0.00028,2]
[426947329,1783047032000,-1522.93759702,0.0002817,2]
[426947314,1783047032000,-153.0,0.00027677,7]
[426947435,1783047039000,-153.0,0.00028702,7]
[426947433,1783047039000,-153.0,0.00028702,7]
[426947430,1783047039000,-153.0,0.00028702,7]
[426947432,1783047039000,-153.0,0.00028702,7]
[426947439,1783047039000,-153.0,0.00028702,7]
[426947429,1783047039000,-153.0,0.00028702,7]
[426947427,1783047039000,-153.0,0.00028702,7]
[426947431,1783047039000,-153.0,0.00028702,7]
[426947436,1783047039000,-153.0,0.00028702,7]
[426947425,1783047039000,-153.0,0.00028702,7]
[426947428,1783047039000,-153.0,0.00028702,7]
[426947434,1783047039000,-153.0,0.00028702,7]
[426947450,1783047039000,-50185.45097148,0.000289,2]
[426947438,1783047039000,-153.0,0.00028702,7]
[426947449,1783047039000,-398.78099832,0.000289,2]
[426947446,1783047039000,-6214.60845621,0.000289,2]
[426947440,1783047039000,-173.75744216,0.00028702,7]
[426947441,1783047039000,-194.51758553,0.00028786,2]
[426947442,1783047039000,-635.88,0.00028799,7]
[426947444,1783047039000,-5000.0,0.00028894,22]
[426947447,1783047039000,-182.23227841,0.000289,2]
[426947437,1783047039000,-153.0,0.00028702,7]
[426947443,1783047039000,-500.0,0.00028799,2]
[426947426,1783047039000,-153.0,0.00028702,7]
[426947448,1783047039000,-10426.72438873,0.000289,2]
[426947422,1783047039000,-153.0,0.00028702,7]
[426947412,1783047039000,-153.0,0.00028702,7]
[426947421,1783047039000,-153.0,0.00028702,7]
[426947445,1783047039000,-150.0,0.000289,10]
[426947391,1783047039000,-1853.971,0.00028448,2]
[426947392,1783047039000,-186.0,0.00028448,2]
[426947395,1783047039000,-285.249342,0.0002868,14]
[426947394,1783047039000,-635.88,0.00028609,7]
[426947396,1783047039000,-308.483535,0.0002868,14]
[426947393,1783047039000,-635.88,0.00028609,7]
[426947411,1783047039000,-153.0,0.00028702,7]
[426947409,1783047039000,-153.0,0.00028702,7]
[426947410,1783047039000,-153.0,0.00028702,7]
[426947398,1783047039000,-264.958562,0.0002868,14]
[426947400,1783047039000,-264.958563,0.0002868,14]
[426947402,1783047039000,-548.59207464,0.000287,2]
[426947404,1783047039000,-153.0,0.00028702,7]
[426947407,1783047039000,-153.0,0.00028702,7]
[426947405,1783047039000,-153.0,0.00028702,7]
[426947406,1783047039000,-153.0,0.00028702,7]
[426947408,1783047039000,-153.0,0.00028702,7]
[426947413,1783047039000,-153.0,0.00028702,7]
[426947415,1783047039000,-153.0,0.00028702,7]
[426947418,1783047039000,-153.0,0.00028702,7]
[426947416,1783047039000,-153.0,0.00028702,7]
[426947419,1783047039000,-153.0,0.00028702,7]
[426947417,1783047039000,-153.0,0.00028702,7]
[426947423,1783047039000,-153.0,0.00028702,7]
[426947420,1783047039000,-153.0,0.00028702,7]
[426947452,1783047039000,-540.91104181,0.0002894,2]
[426947424,1783047039000,-153.0,0.00028702,7]
[426947451,1783047039000,-635.88,0.00028938,7]
[426947479,1783047039000,-1045.36,0.00029035,3]
[426947485,1783047039000,-230.0,0.00029041,2]
[426947480,1783047039000,-522.68,0.00029035,3]
[426947484,1783047039000,-410.0,0.00029041,2]
[426947491,1783047039000,-173.55253927,0.00029041,7]
[426947488,1783047039000,-230.0,0.00029041,2]
[426947490,1783047039000,-550.0001,0.00029041,7]
[426947489,1783047039000,-500.0,0.00029041,7]
[426947500,1783047039000,-396.490063,0.00029041,7]
[426947499,1783047039000,-396.490063,0.00029041,7]
[426947497,1783047039000,-500.0,0.00029041,7]
[426947493,1783047039000,-500.0,0.00029041,7]
[426947492,1783047039000,-186.91731232,0.00029041,7]
[426947494,1783047039000,-257.06119203,0.00029041,7]
[426947496,1783047039000,-500.0,0.00029041,7]
[426947498,1783047039000,-560.04673136,0.00029041,7]
[426947495,1783047039000,-199.329455,0.00029041,7]
[426947502,1783047039000,-396.490063,0.00029041,7]
[426947501,1783047039000,-396.490063,0.00029041,7]
[426947503,1783047039000,-635.88,0.00029044,7]
[426947504,1783047039000,-316.43,0.00029044,2]
[426947505,1783047039000,-300.0,0.00029044,5]
[426947508,1783047039000,-185140.01317936,0.00029045,30]
[426947506,1783047039000,-206.75,0.00029045,7]
[426947462,1783047039000,-227.63,0.00029,120]
[426947482,1783047039000,-784.02,0.00029035,3]
[426947483,1783047039000,-635.88,0.0002904,7]
[426947414,1783047039000,-153.0,0.00028702,7]
[426947478,1783047039000,-8538.48821176,0.0002903,2]
[426947454,1783047039000,-1000.0,0.00028945,2]
[426947455,1783047039000,-160.0,0.00028947,5]
[426947457,1783047039000,-635.88,0.00028999,7]
[426947459,1783047039000,-635.88,0.00028999,7]
[426947461,1783047039000,-311.23990932,0.00029,2]
[426947456,1783047039000,-547.20696533,0.00028999,2]
[426947458,1783047039000,-635.88,0.00028999,7]
[426947460,1783047039000,-2515.51906486,0.00029,2]
[426947474,1783047039000,-151.0,0.00029,13]
[426947467,1783047039000,-192.15557089,0.00029,2]
[426947464,1783047039000,-155.54089878,0.00029,2]
[426947466,1783047039000,-1236.0,0.00029,2]
[426947473,1783047039000,-151.0,0.00029,17]
[426947465,1783047039000,-49339.8311246,0.00029,2]
[426947468,1783047039000,-151.0,0.00029,18]
[426947470,1783047039000,-151.0,0.00029,11]
[426947471,1783047039000,-375.0,0.00029,2]
[426947463,1783047039000,-1448.88699929,0.00029,2]
[426947472,1783047039000,-173.0,0.00029,2]
[426947476,1783047039000,-171.5,0.00029,2]
[426947486,1783047039000,-607.57651886,0.00029041,7]
[426947487,1783047039000,-400.0,0.00029041,2]
[426947481,1783047039000,-261.34,0.00029035,3]
[426947475,1783047039000,-563.0,0.00029,2]
[426947477,1783047039000,-167.354678,0.00029028,2]
[426947469,1783047039000,-151.0,0.00029,19]
[426947453,1783047039000,-552.2022794,0.00028941,2]
[426947514,1783047041000,-14685.5,0.00029045,30]
[426947533,1783048049000,-163.9981816,0.00027847,2]
[426947535,1783048049000,-160.19724686,0.00028,2]
[426947534,1783048049000,-236.811779,0.0002786,2]
[426947873,1783048238000,-500.0,0.00028494,2]
[426947876,1783048238000,-500.0,0.00028494,2]
[426947870,1783048238000,-500.0,0.00028494,2]
[426947869,1783048238000,-156.31082989,0.00028494,2]
[426947871,1783048238000,-500.0,0.00028494,2]
[426947868,1783048238000,-500.0,0.00028494,2]
[426947879,1783048238000,-500.0,0.00028494,2]
[426947877,1783048238000,-500.0,0.00028494,2]
[426947878,1783048238000,-500.0,0.00028494,2]
[426947867,1783048238000,-500.0,0.00028494,2]
[426947865,1783048238000,-500.0,0.00028494,2]
[426947857,1783048238000,-446.0,0.00028458,2]
[426947856,1783048238000,-186.0,0.00028458,2]
[426947855,1783048238000,-1841.549,0.00028458,2]
[426947863,1783048238000,-500.0,0.00028494,2]
[426947859,1783048238000,-231.81191626,0.00028494,2]
[426947861,1783048238000,-500.0,0.00028494,2]
[426947852,1783048238000,-281.6984465,0.00028278,2]
[426947853,1783048238000,-151.0,0.00028378,2]
[426947849,1783048238000,-566.0,0.00028,2]
[426947850,1783048238000,-216.8925853,0.00028223,2]
[426947851,1783048238000,-151.0,0.00028223,2]
[426947848,1783048238000,-155.0,0.00028,2]
[426947847,1783048238000,-192.80275314,0.00028,2]
[426947846,1783048238000,-215.89037227,0.000279,2]
[426947845,1783048238000,-151.0,0.00027556,2]
[426947844,1783048238000,-151.0,0.00027556,2]
[426947854,1783048238000,-2017.64978286,0.00028448,2]
[426947872,1783048238000,-614.19357178,0.00028494,2]
[426947875,1783048238000,-500.0,0.00028494,2]
[426947880,1783048238000,-500.0,0.00028494,2]
[426947874,1783048238000,-500.0,0.00028494,2]
[426947908,1783048238000,-155.0,0.00029,2]
[426947907,1783048238000,-353.0,0.00029,2]
[426947906,1783048238000,-500.0,0.00028999,7]
[426947905,1783048238000,-163.52601162,0.00028999,7]
[426947902,1783048238000,-547.30677638,0.00028945,2]
[426947904,1783048238000,-336.47398838,0.00028999,7]
[426947903,1783048238000,-500.0,0.00028999,7]
[426947901,1783048238000,-1000.0,0.00028945,2]
[426947896,1783048238000,-151.0,0.00028878,2]
[426947893,1783048238000,-210.04378377,0.00028771,30]
[426947895,1783048238000,-151.0,0.00028878,2]
[426947894,1783048238000,-500.0,0.00028799,7]
[426947897,1783048238000,-151.0,0.00028878,2]
[426947899,1783048238000,-500.0,0.0002894,7]
[426947892,1783048238000,-500.0,0.00028494,2]
[426947882,1783048238000,-500.0,0.00028494,2]
[426947884,1783048238000,-303.230103,0.00028494,2]
[426947909,1783048238000,-91.35127078,0.00029,120]
[426947885,1783048238000,-500.0,0.00028494,2]
[426947898,1783048238000,-163.879524,0.000289,10]
[426947881,1783048238000,-500.0,0.00028494,2]
[426947886,1783048238000,-500.0,0.00028494,2]
[426947883,1783048238000,-500.0,0.00028494,2]
[426947888,1783048238000,-500.0,0.00028494,2]
[426947890,1783048238000,-500.0,0.00028494,2]
[426947889,1783048238000,-500.0,0.00028494,2]
[426947891,1783048238000,-500.0,0.00028494,2]
[426947900,1783048238000,-222.30581203,0.00028941,2]
[426947887,1783048238000,-500.0,0.00028494,2]
[426947944,1783049244000,-64.07604185,0.00027397,30]
[426947943,1783049244000,-151.0,0.00026575,2]
[426947995,1783049431000,-211.39569087,0.000278,2]
[426947993,1783049431000,-649.4680029,0.00027763,2]
[426947997,1783049431000,-266.95302755,0.000279,3]
[426947985,1783049431000,-347.00547847,0.00026119,2]
[426948000,1783049431000,-333.0,0.00028,2]
[426947989,1783049431000,-347.366833,0.00027616,2]
[426947987,1783049431000,-273.00514094,0.00027494,2]
[426947999,1783049431000,-500.0,0.00028,2]
[426948002,1783049431000,-156.0,0.00028,2]
[426947991,1783049431000,-173.2934857,0.00027653,2]
[426948029,1783049432000,-169.42423284,0.00028895,2]
[426948031,1783049432000,-169.42423284,0.0002892,2]
[426948004,1783049432000,-538.0,0.00028,2]
[426948030,1783049432000,-150.0,0.000289,10]
[426948037,1783049432000,-616.21872922,0.00029,120]
[426948034,1783049432000,-169.42423284,0.00028945,2]
[426948033,1783049432000,-1513.23733714,0.00028945,2]
[426948036,1783049432000,-268.17842498,0.00028999,2]
[426948035,1783049432000,-1000.0,0.0002895,2]
[426948039,1783049432000,-333.0,0.00029,2]
[426948032,1783049432000,-500.0,0.00028942,2]
[426948028,1783049432000,-169.42423284,0.00028869,2]
[426948025,1783049432000,-500.0,0.00028843,2]
[426948026,1783049432000,-335.22185261,0.00028843,2]
[426948023,1783049432000,-500.0,0.00028843,2]
[426948021,1783049432000,-500.0,0.00028843,2]
[426948015,1783049432000,-500.0,0.00028843,2]
[426948019,1783049432000,-485.86320027,0.00028843,2]
[426948013,1783049432000,-500.0,0.00028843,2]
[426948012,1783049432000,-501.43932024,0.00028843,2]
[426948017,1783049432000,-500.0,0.00028843,2]
[426948038,1783049432000,-605.0,0.00029,2]
[426948010,1783049432000,-186.0,0.00028598,2]
[426948006,1783049432000,-380.87002124,0.00028598,2]
[426948008,1783049432000,-65.12997876,0.00028598,2]
[426948027,1783049432000,-169.42423288,0.00028844,2]
[426948040,1783049432000,-156.0,0.00029,2]
[426948052,1783049432000,-500.0,0.00029044,7]
[426948041,1783049432000,-538.0,0.00029,2]
[426948042,1783049432000,-1092.49,0.00029035,3]
[426948067,1783049432000,-500.0,0.00029044,7]
[426948068,1783049432000,-314.84535387,0.00029044,7]
[426948065,1783049432000,-500.0,0.00029044,7]
[426948063,1783049432000,-500.0,0.00029044,7]
[426948064,1783049432000,-500.0,0.00029044,7]
[426948059,1783049432000,-500.0,0.00029044,7]
[426948061,1783049432000,-500.0,0.00029044,7]
[426948057,1783049432000,-500.0,0.00029044,7]
[426948060,1783049432000,-500.0,0.00029044,7]
[426948056,1783049432000,-500.0,0.00029044,7]
[426948058,1783049432000,-500.0,0.00029044,7]
[426948066,1783049432000,-500.0,0.00029044,7]
[426948055,1783049432000,-500.0,0.00029044,7]
[426948054,1783049432000,-500.0,0.00029044,7]
[426948053,1783049432000,-500.0,0.00029044,7]
[426948051,1783049432000,-190.41477699,0.00029044,7]
[426948050,1783049432000,-500.0,0.00029044,7]
[426948049,1783049432000,-500.0,0.00029044,7]
[426948044,1783049432000,-273.12,0.00029035,3]
[426948045,1783049432000,-819.4,0.00029035,3]
[426948046,1783049432000,-500.0,0.00029043,7]
[426948047,1783049432000,-500.0,0.00029044,7]
[426948048,1783049432000,-500.0,0.00029044,7]
[426948062,1783049432000,-266.60691244,0.00029044,7]
[426948043,1783049432000,-546.25,0.00029035,3]
[426950722,1783049816000,2000.0,0.00016,2]
[426950723,1783050439000,-288.163888,0.00026549,2]
[426950724,1783050439000,-151.0,0.00026575,2]
[426950726,1783050439000,-714.25599269,0.00027396,2]
[426950725,1783050439000,-172.3214525,0.00026858,2]
[426950727,1783050492000,413.67451514,0.000125,2]
[426950731,1783050519000,-8232.35929036,0.00026,30]
[426950730,1783050519000,-686.56419584,0.00025469,3]
[426950729,1783050519000,-150.31235388,0.0002,7]
[426950732,1783050521000,-169.291983,0.00026,30]
[426950733,1783050525000,-200.0,0.000215,2]
[426950738,1783050567000,-6263.02743809,0.00026,30]
[426950737,1783050567000,-33.0,0.000215,2]
[426950813,1783050632000,-757.09457155,0.00025999,2]
[426950809,1783050632000,-245.03983466,0.00025999,2]
[426950811,1783050632000,-757.09457155,0.00025999,2]
[426950820,1783050632000,-643.63331972,0.00025999,2]
[426950828,1783050632000,-757.09457155,0.00025999,2]
[426950815,1783050632000,-113.46125183,0.00025999,2]
[426950832,1783050632000,-351.64899839,0.00025999,2]
[426950824,1783050632000,-757.09457155,0.00025999,2]
[426950822,1783050632000,-757.09457155,0.00025999,2]
[426950826,1783050632000,-757.09457155,0.00025999,2]
[426950830,1783050632000,-757.09457155,0.00025999,2]
[426951068,1783050638000,-297.16911995,0.00027389,2]
[426951041,1783050638000,-405.44557316,0.00025999,2]
[426951064,1783050638000,-159.51239931,0.00026549,7]
[426951055,1783050638000,-757.09457155,0.00025999,2]
[426951049,1783050638000,-757.09457155,0.00025999,2]
[426951051,1783050638000,-757.09457155,0.00025999,2]
[426951066,1783050638000,-231.73641946,0.00027107,7]
[426951053,1783050638000,-757.09457155,0.00025999,2]
[426951059,1783050638000,-29676.38978032,0.00026,30]
[426951057,1783050638000,-757.09457155,0.00025999,2]
[426951047,1783050638000,-757.09457155,0.00025999,2]
[426951045,1783050638000,-757.09457155,0.00025999,2]
[426951043,1783050638000,-757.09457155,0.00025999,2]
[426951061,1783050638000,-219.81669923,0.00026173,2]
[426951070,1783050638000,-294.95461595,0.00027397,7]
[426951077,1783050638000,-297.16911992,0.00027435,2]
[426951075,1783050638000,-297.16911992,0.0002742,2]
[426951072,1783050638000,-297.16911992,0.00027404,2]
[426951096,1783050638000,-300.0,0.00027598,7]
[426951104,1783050638000,-119962.34835671,0.000279,2]
[426951100,1783050638000,-160.0,0.00027842,3]
[426951102,1783050638000,-167.354678,0.00027883,2]
[426951098,1783050638000,-308.215,0.00027842,3]
[426951094,1783050638000,-300.0,0.00027549,2]
[426951087,1783050638000,-804.68,0.0002749,3]
[426951083,1783050638000,-536.42,0.0002749,3]
[426951092,1783050638000,-357799.55529392,0.000275,2]
[426951089,1783050638000,-6662.76222291,0.00027498,30]
[426951081,1783050638000,-1072.85,0.0002749,3]
[426951085,1783050638000,-268.21,0.0002749,3]
[426951079,1783050638000,-297.16911992,0.0002745,2]
[426951818,1783050796000,-441.598822,0.00025999,2]
[426951819,1783050969000,500.0,0.000195,30]
[426951884,1783051471000,971.22483462,0.00029042,120]
[426951893,1783051635000,-500.0,0.00026625,2]
[426951891,1783051635000,-500.0,0.00026625,2]
[426951892,1783051635000,-500.0,0.00026625,2]
[426951886,1783051635000,-163.9981816,0.00026069,2]
[426951889,1783051635000,-500.0,0.00026625,2]
[426951888,1783051635000,-183.1265424,0.00026625,2]
[426951887,1783051635000,-294.95461596,0.00026549,7]
[426951890,1783051635000,-203.91353918,0.00026625,2]
[426951895,1783051635000,-500.0,0.00026625,2]
[426951897,1783051635000,-500.0,0.00026625,2]
[426951896,1783051635000,-500.0,0.00026625,2]
[426951898,1783051635000,-500.0,0.00026625,2]
[426951899,1783051635000,-500.0,0.00026625,2]
[426951900,1783051635000,-500.0,0.00026625,2]
[426951903,1783051635000,-500.0,0.00026625,2]
[426951902,1783051635000,-572.99110057,0.00026625,2]
[426951905,1783051635000,-4367.51073396,0.00026626,2]
[426951904,1783051635000,-500.0,0.00026625,2]
[426951894,1783051635000,-500.0,0.00026625,2]
[426951901,1783051635000,-500.0,0.00026625,2]
[426951906,1783051642000,-1850.82647609,0.00026626,2]
[426951955,1783051832000,-628.38849438,0.00026712,2]
[426951942,1783051832000,-103.8216398,0.00026516,2]
[426951939,1783051832000,-158.6661942,0.00026516,2]
[426951937,1783051832000,-2850.8977596,0.00026484,2]
[426951944,1783051832000,-628.38849438,0.00026712,2]
[426951946,1783051832000,-171.52788426,0.00026712,2]
[426951949,1783051832000,-628.38849438,0.00026712,2]
[426951953,1783051832000,-628.38849438,0.00026712,2]
[426951963,1783051832000,-89.82473997,0.00026712,2]
[426951951,1783051832000,-628.38849438,0.00026712,2]
[426951957,1783051832000,-372.6482526,0.00026712,2]
[426951961,1783051832000,-255.74024178,0.00026712,2]
[426952127,1783051838000,-221.46796013,0.00027028,2]
[426952130,1783051838000,-276.75510033,0.00027417,2]